fUSD/lending_fUSD_20260621
["ID","MTS","AMOUNT","RATE_DAILY","PERIOD"]
[425864000,1782011443000,-1262.01904728,0.00025707,2]
[425863999,1782011443000,-2776.15,0.000255,2]
[425864002,1782011443000,-150.0,0.00026093,2]
[425864001,1782011443000,-9187.1,0.00025786,2]
[425864003,1782011443000,-151.0,0.00026296,2]
[425864008,1782011443000,-3647.0,0.00026524,2]
[425864007,1782011443000,-6081.0,0.00026524,2]
[425864005,1782011443000,-532.0,0.00026301,10]
[425864009,1782011443000,-5096.96724054,0.00027013,2]
[425864006,1782011443000,-513.0,0.00026429,8]
[425864012,1782011443000,-604.0,0.00027397,2]
[425864010,1782011443000,-157.89569618,0.00027397,2]
[425864011,1782011443000,-151.0,0.00027397,2]
[425864013,1782011443000,-151.0,0.00027397,2]
[425864015,1782011443000,-6709.13,0.00027397,10]
[425864014,1782011443000,-3848.51,0.00027397,10]
[425864016,1782011443000,-5590.95,0.00027397,10]
[425864018,1782011443000,-500.0,0.000275,7]
[425863990,1782011443000,-171.38,0.00024658,2]
[425863987,1782011443000,-513.0,0.00024286,6]
[425864017,1782011443000,-150.0,0.00027398,2]
[425863988,1782011443000,-592.44,0.00024286,2]
[425863985,1782011443000,-1080.0,0.00024183,5]
[425863955,1782011443000,-500.0,0.00022583,4]
[425863959,1782011443000,-500.0,0.00022583,4]
[425863962,1782011443000,-457.30442964,0.00022583,4]
[425863961,1782011443000,-500.0,0.00022583,4]
[425863963,1782011443000,-205.90025614,0.000229,4]
[425863964,1782011443000,-173.0,0.00023,2]
[425863965,1782011443000,-204.0,0.00023,2]
[425863966,1782011443000,-240.0,0.00023,2]
[425863969,1782011443000,-162.791075,0.00023196,2]
[425863972,1782011443000,-300.1,0.00023368,2]
[425863968,1782011443000,-1262.01904728,0.0002316,2]
[425863971,1782011443000,-150.88,0.00023343,2]
[425863967,1782011443000,-249.0,0.00023074,2]
[425863974,1782011443000,-3695.37,0.00023368,2]
[425863982,1782011443000,-204.0,0.00024,2]
[425863970,1782011443000,-186.193351,0.00023278,2]
[425863980,1782011443000,-150.0,0.00023667,2]
[425863983,1782011443000,-240.0,0.00024,2]
[425863984,1782011443000,-9187.1,0.00024174,2]
[425863978,1782011443000,-3647.0,0.00023524,2]
[425863981,1782011443000,-173.0,0.00024,2]
[425863986,1782011443000,-195.39,0.00024207,7]
[425863976,1782011443000,-5176.56,0.00023368,2]
[425863975,1782011443000,-190.71,0.00023368,7]
[425863977,1782011443000,-6081.0,0.00023524,2]
[425863973,1782011443000,-3337.05,0.00023368,2]
[425863979,1782011443000,-322.33937617,0.00023544,7]
[425864057,1782011444000,-153.0,0.00028869,30]
[425864061,1782011444000,-7548.48202444,0.00029007,2]
[425864058,1782011444000,-240.0,0.00028869,30]
[425864056,1782011444000,-155.0,0.00028869,30]
[425864050,1782011444000,-166.93879887,0.00028869,30]
[425864054,1782011444000,-160.0,0.00028869,30]
[425864053,1782011444000,-204.0,0.00028869,30]
[425864051,1782011444000,-156.0,0.00028869,30]
[425864052,1782011444000,-173.0,0.00028869,30]
[425864059,1782011444000,-693.0,0.00029,2]
[425864055,1782011444000,-155.0,0.00028869,30]
[425864060,1782011444000,-1002.257564,0.00029,2]
[425864073,1782011444000,-500.0,0.00029499,2]
[425864064,1782011444000,-7951.44782263,0.00029232,2]
[425864063,1782011444000,-327.89587836,0.0002913,5]
[425864066,1782011444000,-159.78682539,0.0002935,2]
[425864065,1782011444000,-2203.652023,0.00029293,3]
[425864068,1782011444000,-300.0,0.000294,10]
[425864067,1782011444000,-413.99,0.000294,10]
[425864069,1782011444000,-500.0,0.00029488,2]
[425864071,1782011444000,-438.22693307,0.00029489,2]
[425864070,1782011444000,-500.0,0.00029489,2]
[425864074,1782011444000,-592.44,0.00029499,2]
[425864072,1782011444000,-10000.0,0.00029489,2]
[425864049,1782011444000,-836.73517227,0.00028802,2]
[425864062,1782011444000,-1123.46,0.000291,30]
[425864047,1782011444000,-150.0,0.00028767,2]
[425864034,1782011444000,-204.08405477,0.00028254,2]
[425864043,1782011444000,-205.51479227,0.00028254,2]
[425864075,1782011444000,-500.0,0.00029499,2]
[425864019,1782011444000,-2938.6445554,0.00027519,2]
[425864022,1782011444000,-207.09,0.00027596,30]
[425864021,1782011444000,-155.94,0.00027576,30]
[425864020,1782011444000,-189.62,0.0002757,30]
[425864024,1782011444000,-250.5,0.00028074,2]
[425864025,1782011444000,-1262.01904728,0.00028253,2]
[425864023,1782011444000,-32786.9093119,0.00027877,2]
[425864026,1782011444000,-155.50750776,0.00028254,2]
[425864027,1782011444000,-206.46620866,0.00028254,2]
[425864029,1782011444000,-158.6060324,0.00028254,2]
[425864028,1782011444000,-159.78682539,0.00028254,2]
[425864030,1782011444000,-164.20079939,0.00028254,2]
[425864032,1782011444000,-500.0,0.00028254,2]
[425864031,1782011444000,-214.43537924,0.00028254,2]
[425864033,1782011444000,-157.20998941,0.00028254,2]
[425864036,1782011444000,-705.09722233,0.00028254,2]
[425864035,1782011444000,-9211.34798984,0.00028254,2]
[425864037,1782011444000,-156.19550625,0.00028254,2]
[425864039,1782011444000,-204.2244487,0.00028254,2]
[425864038,1782011444000,-201.93286098,0.00028254,2]
[425864040,1782011444000,-152.0,0.00028254,2]
[425864041,1782011444000,-159.30253989,0.00028254,2]
[425864042,1782011444000,-679.30068114,0.00028254,2]
[425864045,1782011444000,-513.0,0.00028571,10]
[425864044,1782011444000,-151.0,0.00028267,2]
[425864046,1782011444000,-157.89569618,0.00028766,2]
[425864048,1782011444000,-159.78682539,0.00028802,2]
[425864076,1782011444000,-500.0,0.00029499,2]
[425864078,1782011444000,-506.64029127,0.00029499,2]
[425864079,1782011444000,-500.0,0.00029499,2]
[425864111,1782011444000,-500.0,0.00029588,2]
[425864110,1782011444000,-500.0,0.00029588,2]
[425864115,1782011444000,-586.02764687,0.00029588,2]
[425864114,1782011444000,-500.0,0.00029588,2]
[425864116,1782011444000,-500.0,0.00029588,2]
[425864112,1782011444000,-500.0,0.00029588,2]
[425864113,1782011444000,-500.0,0.00029588,2]
[425864118,1782011444000,-500.0,0.00029588,2]
[425864120,1782011444000,-500.0,0.00029588,2]
[425864117,1782011444000,-500.0,0.00029588,2]
[425864119,1782011444000,-500.0,0.00029588,2]
[425864124,1782011444000,-500.0,0.00029588,2]
[425864121,1782011444000,-500.0,0.00029588,2]
[425864125,1782011444000,-500.0,0.00029588,2]
[425864123,1782011444000,-500.0,0.00029588,2]
[425864122,1782011444000,-500.0,0.00029588,2]
[425864127,1782011444000,-500.0,0.00029588,2]
[425864126,1782011444000,-500.0,0.00029588,2]
[425864128,1782011444000,-500.0,0.00029588,2]
[425864130,1782011444000,-500.0,0.00029588,2]
[425864129,1782011444000,-500.0,0.00029588,2]
[425864131,1782011444000,-500.0,0.00029588,2]
[425864132,1782011444000,-500.0,0.00029588,2]
[425864133,1782011444000,-500.0,0.00029588,2]
[425864135,1782011444000,-500.0,0.00029588,2]
[425864107,1782011444000,-500.0,0.00029588,2]
[425864106,1782011444000,-592.44,0.00029588,2]
[425864134,1782011444000,-500.0,0.00029588,2]
[425864108,1782011444000,-500.0,0.00029588,2]
[425864109,1782011444000,-500.0,0.00029588,2]
[425864083,1782011444000,-3647.0,0.00029524,2]
[425864080,1782011444000,-500.0,0.00029499,2]
[425864077,1782011444000,-500.0,0.00029499,2]
[425864081,1782011444000,-500.0,0.00029499,2]
[425864085,1782011444000,-250.0,0.00029534,13]
[425864084,1782011444000,-250.0,0.00029534,13]
[425864086,1782011444000,-151.72310412,0.00029559,2]
[425864087,1782011444000,-217.42,0.00029563,2]
[425864088,1782011444000,-542.86170368,0.00029588,2]
[425864089,1782011444000,-542.86170368,0.00029588,2]
[425864090,1782011444000,-542.86170368,0.00029588,2]
[425864091,1782011444000,-542.86170368,0.00029588,2]
[425864082,1782011444000,-6081.0,0.00029524,2]
[425864092,1782011444000,-542.86170368,0.00029588,2]
[425864105,1782011444000,-500.0,0.00029588,2]
[425864104,1782011444000,-592.44,0.00029588,2]
[425864103,1782011444000,-592.44,0.00029588,2]
[425864102,1782011444000,-592.44,0.00029588,2]
[425864094,1782011444000,-542.86170368,0.00029588,2]
[425864100,1782011444000,-500.0,0.00029588,2]
[425864101,1782011444000,-592.44,0.00029588,2]
[425864098,1782011444000,-500.0,0.00029588,2]
[425864095,1782011444000,-542.86170367,0.00029588,2]
[425864097,1782011444000,-500.0,0.00029588,2]
[425864096,1782011444000,-500.0,0.00029588,2]
[425864093,1782011444000,-542.86170368,0.00029588,2]
[425864099,1782011444000,-500.0,0.00029588,2]
[425864168,1782011445000,-520.02815552,0.00029589,2]
[425864170,1782011445000,-500.0,0.00029589,2]
[425864174,1782011445000,-224.13349375,0.00029589,2]
[425864171,1782011445000,-500.0,0.00029589,2]
[425864167,1782011445000,-500.0,0.00029589,2]
[425864169,1782011445000,-608.00263635,0.00029589,2]
[425864175,1782011445000,-500.0,0.00029589,2]
[425864172,1782011445000,-343.66180446,0.00029589,2]
[425864165,1782011445000,-506.48253288,0.00029589,2]
[425864173,1782011445000,-500.0,0.00029589,2]
[425864177,1782011445000,-500.0,0.00029589,2]
[425864183,1782011445000,-500.0,0.00029589,2]
[425864178,1782011445000,-500.0,0.00029589,2]
[425864180,1782011445000,-640.19089106,0.00029589,2]
[425864179,1782011445000,-500.0,0.00029589,2]
[425864181,1782011445000,-500.0,0.00029589,2]
[425864166,1782011445000,-533.04303015,0.00029589,2]
[425864182,1782011445000,-500.0,0.00029589,2]
[425864186,1782011445000,-500.0,0.00029589,2]
[425864185,1782011445000,-500.0,0.00029589,2]
[425864184,1782011445000,-500.0,0.00029589,2]
[425864188,1782011445000,-634.67,0.00029589,2]
[425864187,1782011445000,-500.0,0.00029589,2]
[425864189,1782011445000,-500.0,0.00029589,2]
[425864190,1782011445000,-500.0,0.00029589,2]
[425864176,1782011445000,-500.0,0.00029589,2]
[425864157,1782011445000,-500.0,0.00029589,2]
[425864158,1782011445000,-500.0,0.00029589,2]
[425864162,1782011445000,-502.63850258,0.00029589,2]
[425864192,1782011445000,-537.55408126,0.00029589,2]
[425864137,1782011445000,-500.0,0.00029588,2]
[425864136,1782011445000,-500.0,0.00029588,2]
[425864139,1782011445000,-161.13611769,0.00029588,2]
[425864138,1782011445000,-500.0,0.00029588,2]
[425864140,1782011445000,-422.9340936,0.00029589,2]
[425864141,1782011445000,-500.0,0.00029589,2]
[425864143,1782011445000,-500.0,0.00029589,2]
[425864144,1782011445000,-500.83916894,0.00029589,2]
[425864142,1782011445000,-500.0,0.00029589,2]
[425864146,1782011445000,-508.6064196,0.00029589,2]
[425864147,1782011445000,-506.8881253,0.00029589,2]
[425864152,1782011445000,-500.0,0.00029589,2]
[425864148,1782011445000,-500.0,0.00029589,2]
[425864145,1782011445000,-505.26110415,0.00029589,2]
[425864150,1782011445000,-500.0,0.00029589,2]
[425864151,1782011445000,-500.0,0.00029589,2]
[425864153,1782011445000,-500.0,0.00029589,2]
[425864154,1782011445000,-590.3050494,0.00029589,2]
[425864155,1782011445000,-504.76660242,0.00029589,2]
[425864156,1782011445000,-500.0,0.00029589,2]
[425864160,1782011445000,-500.0,0.00029589,2]
[425864164,1782011445000,-500.0,0.00029589,2]
[425864159,1782011445000,-500.0,0.00029589,2]
[425864163,1782011445000,-500.0,0.00029589,2]
[425864161,1782011445000,-500.0,0.00029589,2]
[425864149,1782011445000,-500.0,0.00029589,2]
[425864191,1782011445000,-191.82869199,0.00029589,2]
[425864197,1782011445000,-500.0,0.00029589,2]
[425864226,1782011445000,-500.0,0.00029589,2]
[425864225,1782011445000,-500.0,0.00029589,2]
[425864227,1782011445000,-500.0,0.00029589,2]
[425864231,1782011445000,-500.0,0.00029589,2]
[425864229,1782011445000,-500.0,0.00029589,2]
[425864228,1782011445000,-500.0,0.00029589,2]
[425864232,1782011445000,-500.0,0.00029589,2]
[425864230,1782011445000,-500.0,0.00029589,2]
[425864233,1782011445000,-500.0,0.00029589,2]
[425864234,1782011445000,-500.0,0.00029589,2]
[425864236,1782011445000,-500.0,0.00029589,2]
[425864238,1782011445000,-500.0,0.00029589,2]
[425864237,1782011445000,-500.0,0.00029589,2]
[425864243,1782011445000,-810.2,0.00029589,2]
[425864240,1782011445000,-500.0,0.00029589,2]
[425864239,1782011445000,-524.5665104,0.00029589,2]
[425864242,1782011445000,-500.0,0.00029589,2]
[425864241,1782011445000,-500.0,0.00029589,2]
[425864245,1782011445000,-500.0,0.00029589,2]
[425864244,1782011445000,-500.0,0.00029589,2]
[425864246,1782011445000,-500.0,0.00029589,2]
[425864248,1782011445000,-500.0,0.00029589,2]
[425864247,1782011445000,-507.68186157,0.00029589,2]
[425864249,1782011445000,-500.0,0.00029589,2]
[425864193,1782011445000,-500.0,0.00029589,2]
[425864223,1782011445000,-500.0,0.00029589,2]
[425864224,1782011445000,-500.0,0.00029589,2]
[425864235,1782011445000,-500.0,0.00029589,2]
[425864216,1782011445000,-500.0,0.00029589,2]
[425864194,1782011445000,-500.0,0.00029589,2]
[425864222,1782011445000,-500.0,0.00029589,2]
[425864195,1782011445000,-500.0,0.00029589,2]
[425864198,1782011445000,-500.0,0.00029589,2]
[425864196,1782011445000,-500.0,0.00029589,2]
[425864200,1782011445000,-500.0,0.00029589,2]
[425864199,1782011445000,-515.46052942,0.00029589,2]
[425864201,1782011445000,-500.0,0.00029589,2]
[425864203,1782011445000,-500.0,0.00029589,2]
[425864204,1782011445000,-500.0,0.00029589,2]
[425864206,1782011445000,-512.12711123,0.00029589,2]
[425864208,1782011445000,-500.0,0.00029589,2]
[425864209,1782011445000,-551.16,0.00029589,2]
[425864202,1782011445000,-700.0,0.00029589,2]
[425864220,1782011445000,-500.0,0.00029589,2]
[425864221,1782011445000,-500.0,0.00029589,2]
[425864205,1782011445000,-500.0,0.00029589,2]
[425864219,1782011445000,-624.95,0.00029589,2]
[425864214,1782011445000,-500.0,0.00029589,2]
[425864218,1782011445000,-500.0,0.00029589,2]
[425864215,1782011445000,-500.0,0.00029589,2]
[425864217,1782011445000,-500.0,0.00029589,2]
[425864210,1782011445000,-500.0,0.00029589,2]
[425864213,1782011445000,-500.0,0.00029589,2]
[425864211,1782011445000,-500.0,0.00029589,2]
[425864207,1782011445000,-730.17,0.00029589,2]
[425864212,1782011445000,-500.0,0.00029589,2]
[425864307,1782011446000,-500.0,0.00029589,2]
[425864313,1782011446000,-500.0,0.00029589,2]
[425864310,1782011446000,-618.29,0.00029589,2]
[425864312,1782011446000,-502.12,0.00029589,2]
[425864311,1782011446000,-500.0,0.00029589,2]
[425864303,1782011446000,-500.0,0.00029589,2]
[425864306,1782011446000,-500.0,0.00029589,2]
[425864308,1782011446000,-504.3253233,0.00029589,2]
[425864305,1782011446000,-500.0,0.00029589,2]
[425864304,1782011446000,-500.0,0.00029589,2]
[425864314,1782011446000,-564.42,0.00029589,2]
[425864309,1782011446000,-500.0,0.00029589,2]
[425864315,1782011446000,-500.0,0.00029589,2]
[425864327,1782011446000,-208.176751,0.00029589,7]
[425864318,1782011446000,-500.0,0.00029589,2]
[425864319,1782011446000,-500.0,0.00029589,2]
[425864317,1782011446000,-500.0,0.00029589,2]
[425864320,1782011446000,-500.0,0.00029589,2]
[425864324,1782011446000,-500.0,0.00029589,2]
[425864326,1782011446000,-500.0,0.00029589,2]
[425864322,1782011446000,-500.0,0.00029589,2]
[425864323,1782011446000,-500.0,0.00029589,2]
[425864321,1782011446000,-500.0,0.00029589,2]
[425864325,1782011446000,-500.0,0.00029589,2]
[425864328,1782011446000,-500.0,0.00029589,2]
[425864302,1782011446000,-309.26876105,0.00029589,2]
[425864316,1782011446000,-500.0,0.00029589,2]
[425864301,1782011446000,-614.5,0.00029589,2]
[425864250,1782011446000,-803.51,0.00029589,2]
[425864300,1782011446000,-500.0,0.00029589,2]
[425864259,1782011446000,-502.84006385,0.00029589,2]
[425864251,1782011446000,-518.89859704,0.00029589,2]
[425864253,1782011446000,-606.51,0.00029589,2]
[425864255,1782011446000,-500.0,0.00029589,2]
[425864257,1782011446000,-525.53193752,0.00029589,2]
[425864262,1782011446000,-500.0,0.00029589,2]
[425864267,1782011446000,-500.0,0.00029589,2]
[425864265,1782011446000,-500.0,0.00029589,2]
[425864269,1782011446000,-500.0,0.00029589,2]
[425864273,1782011446000,-500.0,0.00029589,2]
[425864280,1782011446000,-573.43022698,0.00029589,2]
[425864271,1782011446000,-500.0,0.00029589,2]
[425864298,1782011446000,-500.0,0.00029589,2]
[425864276,1782011446000,-500.0,0.00029589,2]
[425864329,1782011446000,-500.0,0.00029589,2]
[425864282,1782011446000,-500.0,0.00029589,2]
[425864291,1782011446000,-500.0,0.00029589,2]
[425864292,1782011446000,-600.96,0.00029589,2]
[425864286,1782011446000,-500.0,0.00029589,2]
[425864288,1782011446000,-500.0,0.00029589,2]
[425864294,1782011446000,-500.0,0.00029589,2]
[425864295,1782011446000,-500.0,0.00029589,2]
[425864293,1782011446000,-500.0,0.00029589,2]
[425864296,1782011446000,-500.0,0.00029589,2]
[425864299,1782011446000,-500.0,0.00029589,2]
[425864297,1782011446000,-540.04,0.00029589,2]
[425864284,1782011446000,-500.0,0.00029589,2]
[425864331,1782011446000,-510.90773429,0.00029589,2]
[425864278,1782011446000,-500.0,0.00029589,2]
[425864333,1782011446000,-500.0,0.00029589,2]
[425864365,1782011446000,-500.0,0.00029589,2]
[425864375,1782011446000,-1788.46,0.00029589,2]
[425864368,1782011446000,-1088.56,0.00029589,2]
[425864367,1782011446000,-500.0,0.00029589,2]
[425864371,1782011446000,-611.66835038,0.00029589,2]
[425864372,1782011446000,-500.0,0.00029589,2]
[425864370,1782011446000,-500.0,0.00029589,2]
[425864373,1782011446000,-325.11260092,0.00029589,2]
[425864374,1782011446000,-1661.56,0.00029589,2]
[425864376,1782011446000,-500.0,0.00029589,2]
[425864369,1782011446000,-500.0,0.00029589,2]
[425864378,1782011446000,-500.0,0.00029589,2]
[425864366,1782011446000,-509.43854376,0.00029589,2]
[425864382,1782011446000,-500.0,0.00029589,2]
[425864383,1782011446000,-695.39,0.00029589,2]
[425864379,1782011446000,-935.58,0.00029589,2]
[425864380,1782011446000,-500.0,0.00029589,2]
[425864385,1782011446000,-2019.42,0.00029589,2]
[425864381,1782011446000,-500.0,0.00029589,2]
[425864388,1782011446000,-500.0,0.00029589,2]
[425864389,1782011446000,-500.0,0.00029589,2]
[425864384,1782011446000,-769.38,0.00029589,2]
[425864391,1782011446000,-500.0,0.00029589,2]
[425864390,1782011446000,-500.0,0.00029589,2]
[425864392,1782011446000,-535.27,0.00029589,2]
[425864330,1782011446000,-500.0,0.00029589,2]
[425864387,1782011446000,-1298.43,0.00029589,2]
[425864362,1782011446000,-500.0,0.00029589,2]
[425864377,1782011446000,-500.0,0.00029589,2]
[425864354,1782011446000,-286.70776312,0.00029589,2]
[425864359,1782011446000,-500.0,0.00029589,2]
[425864335,1782011446000,-500.0,0.00029589,2]
[425864337,1782011446000,-524.99368868,0.00029589,2]
[425864338,1782011446000,-500.0,0.00029589,2]
[425864336,1782011446000,-500.0,0.00029589,2]
[425864334,1782011446000,-500.0,0.00029589,2]
[425864340,1782011446000,-500.0,0.00029589,2]
[425864341,1782011446000,-743.19,0.00029589,2]
[425864339,1782011446000,-626.03,0.00029589,2]
[425864342,1782011446000,-547.15,0.00029589,2]
[425864343,1782011446000,-500.0,0.00029589,2]
[425864344,1782011446000,-500.0,0.00029589,2]
[425864345,1782011446000,-508.21801403,0.00029589,2]
[425864346,1782011446000,-500.0,0.00029589,2]
[425864332,1782011446000,-500.0,0.00029589,2]
[425864357,1782011446000,-500.0,0.00029589,2]
[425864348,1782011446000,-509.08760568,0.00029589,2]
[425864349,1782011446000,-500.0,0.00029589,2]
[425864352,1782011446000,-500.0,0.00029589,2]
[425864351,1782011446000,-500.0,0.00029589,2]
[425864350,1782011446000,-1085.35,0.00029589,2]
[425864353,1782011446000,-500.0,0.00029589,2]
[425864356,1782011446000,-500.0,0.00029589,2]
[425864355,1782011446000,-500.0,0.00029589,2]
[425864347,1782011446000,-500.0,0.00029589,2]
[425864364,1782011446000,-784.42,0.00029589,2]
[425864358,1782011446000,-500.0,0.00029589,2]
[425864360,1782011446000,-500.0,0.00029589,2]
[425864431,1782011447000,-500.0,0.00029589,2]
[425864432,1782011447000,-500.0,0.00029589,2]
[425864422,1782011447000,-500.0,0.00029589,2]
[425864437,1782011447000,-500.0,0.00029589,2]
[425864436,1782011447000,-500.0,0.00029589,2]
[425864435,1782011447000,-500.0,0.00029589,2]
[425864423,1782011447000,-500.0,0.00029589,2]
[425864430,1782011447000,-701.78,0.00029589,2]
[425864426,1782011447000,-500.0,0.00029589,2]
[425864428,1782011447000,-500.0,0.00029589,2]
[425864427,1782011447000,-859.64,0.00029589,2]
[425864433,1782011447000,-500.0,0.00029589,2]
[425864429,1782011447000,-500.0,0.00029589,2]
[425864434,1782011447000,-500.0,0.00029589,2]
[425864445,1782011447000,-500.0,0.00029589,2]
[425864440,1782011447000,-500.0,0.00029589,2]
[425864441,1782011447000,-500.0,0.00029589,2]
[425864439,1782011447000,-697.05,0.00029589,2]
[425864442,1782011447000,-500.0,0.00029589,2]
[425864443,1782011447000,-500.0,0.00029589,2]
[425864444,1782011447000,-500.0,0.00029589,2]
[425864446,1782011447000,-500.0,0.00029589,2]
[425864450,1782011447000,-500.0,0.00029589,2]
[425864447,1782011447000,-500.0,0.00029589,2]
[425864451,1782011447000,-1092.23,0.00029589,2]
[425864449,1782011447000,-1259.13,0.00029589,2]
[425864448,1782011447000,-500.0,0.00029589,2]
[425864438,1782011447000,-500.0,0.00029589,2]
[425864417,1782011447000,-500.0,0.00029589,2]
[425864393,1782011447000,-500.0,0.00029589,2]
[425864420,1782011447000,-500.0,0.00029589,2]
[425864454,1782011447000,-822.45,0.00029589,2]
[425864396,1782011447000,-500.0,0.00029589,2]
[425864398,1782011447000,-932.5,0.00029589,2]
[425864399,1782011447000,-500.0,0.00029589,2]
[425864394,1782011447000,-500.0,0.00029589,2]
[425864400,1782011447000,-913.08,0.00029589,2]
[425864395,1782011447000,-500.0,0.00029589,2]
[425864397,1782011447000,-500.0,0.00029589,2]
[425864402,1782011447000,-1345.31,0.00029589,2]
[425864401,1782011447000,-500.0,0.00029589,2]
[425864404,1782011447000,-625.17,0.00029589,2]
[425864403,1782011447000,-500.0,0.00029589,2]
[425864405,1782011447000,-500.0,0.00029589,2]
[425864424,1782011447000,-500.0,0.00029589,2]
[425864410,1782011447000,-575.46,0.00029589,2]
[425864407,1782011447000,-500.0,0.00029589,2]
[425864412,1782011447000,-500.0,0.00029589,2]
[425864406,1782011447000,-500.0,0.00029589,2]
[425864408,1782011447000,-500.0,0.00029589,2]
[425864411,1782011447000,-500.0,0.00029589,2]
[425864414,1782011447000,-500.0,0.00029589,2]
[425864413,1782011447000,-500.0,0.00029589,2]
[425864415,1782011447000,-500.0,0.00029589,2]
[425864421,1782011447000,-500.0,0.00029589,2]
[425864425,1782011447000,-500.0,0.00029589,2]
[425864419,1782011447000,-757.1,0.00029589,2]
[425864418,1782011447000,-500.0,0.00029589,2]
[425864416,1782011447000,-500.0,0.00029589,2]
[425864409,1782011447000,-523.29,0.00029589,2]
[425864455,1782011447000,-500.0,0.00029589,2]
[425864452,1782011447000,-500.0,0.00029589,2]
[425864453,1782011447000,-500.0,0.00029589,2]
[425864489,1782011447000,-500.0,0.00029589,2]
[425864491,1782011447000,-795.83,0.00029589,2]
[425864490,1782011447000,-500.0,0.00029589,2]
[425864493,1782011447000,-500.0,0.00029589,2]
[425864492,1782011447000,-500.0,0.00029589,2]
[425864494,1782011447000,-511.90054925,0.00029589,2]
[425864499,1782011447000,-500.0,0.00029589,2]
[425864497,1782011447000,-500.0,0.00029589,2]
[425864495,1782011447000,-500.0,0.00029589,2]
[425864496,1782011447000,-608.91,0.00029589,2]
[425864498,1782011447000,-500.0,0.00029589,2]
[425864500,1782011447000,-500.0,0.00029589,2]
[425864502,1782011447000,-500.0,0.00029589,2]
[425864488,1782011447000,-560.13,0.00029589,2]
[425864501,1782011447000,-500.0,0.00029589,2]
[425864503,1782011447000,-500.0,0.00029589,2]
[425864505,1782011447000,-639.32,0.00029589,2]
[425864506,1782011447000,-500.0,0.00029589,2]
[425864508,1782011447000,-500.0,0.00029589,2]
[425864507,1782011447000,-590.15992407,0.00029589,2]
[425864510,1782011447000,-829.41,0.00029589,2]
[425864513,1782011447000,-1139.03,0.00029589,2]
[425864509,1782011447000,-500.0,0.00029589,2]
[425864512,1782011447000,-500.0,0.00029589,2]
[425864511,1782011447000,-527.43,0.00029589,2]
[425864514,1782011447000,-829.83,0.00029589,2]
[425864515,1782011447000,-500.0,0.00029589,2]
[425864456,1782011447000,-500.0,0.00029589,2]
[425864504,1782011447000,-545.47,0.00029589,2]
[425864486,1782011447000,-500.0,0.00029589,2]
[425864516,1782011447000,-500.0,0.00029589,2]
[425864483,1782011447000,-500.0,0.00029589,2]
[425864462,1782011447000,-500.0,0.00029589,2]
[425864460,1782011447000,-500.0,0.00029589,2]
[425864461,1782011447000,-500.0,0.00029589,2]
[425864458,1782011447000,-500.0,0.00029589,2]
[425864457,1782011447000,-555.71060791,0.00029589,2]
[425864459,1782011447000,-500.0,0.00029589,2]